bitfinex-derivatives/quotes_ETHF0:USTF0_20250929
["timestamp","ask_amount","ask_price","bid_price","bid_amount"]
[1759105681291,1.32611,4144.6,4144.5,0.00250998]
[1759105681490,1.82800176,4144.6,4144.5,0.87191104]
[1759105690402,1.32616,4144.1,4144.0,0.6318]
[1759105690703,5.28385176,4144.1,4144.0,0.6318]
[1759105691206,5.28385176,4144.1,4144.0,0.63430046]
[1759105691703,5.28385176,4144.1,4144.0,0.00250046]
[1759105699407,0.43427,4143.1,4143.0,0.6611]
[1759105699609,1.58367,4143.1,4143.0,1.53050106]
[1759105699808,0.7648,4143.1,4143.0,1.53050106]
[1759105700108,0.5097,4143.1,4143.0,1.90260106]
[1759105700506,0.51273394,4143.1,4143.0,1.90524401]
[1759105701409,0.26473394,4143.1,4143.0,1.90524401]
[1759105701603,0.51273394,4143.1,4143.0,1.90524401]
[1759105701807,0.89733394,4143.1,4143.0,1.90524401]
[1759105702211,0.51273394,4143.1,4143.0,1.90524401]
[1759105708618,0.94700394,4143.1,4143.0,1.90524401]
[1759105708814,0.51273394,4143.1,4143.0,2.33952401]
[1759105709510,0.51273394,4143.1,4143.0,1.90524401]
[1759105709808,0.94700394,4143.1,4143.0,1.90524401]
[1759105710213,0.94700394,4143.1,4143.0,1.66124401]
[1759105710214,1.56850394,4143.1,4143.0,1.66124401]
[1759105710416,1.56850394,4143.1,4143.0,1.49934401]
[1759105710719,1.56850394,4143.1,4143.0,1.89594401]
[1759105710912,1.19290394,4143.1,4143.0,1.89594401]
[1759105711316,0.75863394,4143.1,4143.0,1.89594401]
[1759105711511,0.75863394,4143.1,4143.0,2.33022401]
[1759105711712,0.51273394,4143.1,4143.0,2.33022401]
[1759105711914,0.00303394,4143.1,4143.0,2.33022401]
[1759105713516,0.64033394,4143.1,4143.0,2.33022401]
[1759105714019,0.00303394,4143.1,4143.0,2.33022401]
[1759105716612,0.00303394,4143.1,4143.0,1.89594401]
[1759105716918,0.26473394,4143.1,4143.0,1.89594401]
[1759105717114,0.88623394,4143.1,4143.0,1.89594401]
[1759105717716,4.09403394,4143.1,4143.0,1.02654295]
[1759105717919,4.09403394,4143.1,4143.0,0.00264295]
[1759105717920,4.59548581,4143.1,4143.0,0.00264295]
[1759105720123,4.59548581,4143.1,4143.0,1.88274401]
[1759105720124,4.46788581,4143.1,4143.0,1.88274401]
[1759105720418,4.84348581,4143.1,4143.0,1.88274401]
[1759105720615,4.84348581,4143.1,4143.0,1.72404401]
[1759105721015,4.84348581,4143.1,4143.0,1.88274401]
[1759105722216,4.59548581,4143.1,4143.0,0.00264295]
[1759105722421,4.84348581,4143.1,4143.0,0.00264295]
[1759105723318,4.84348581,4143.1,4143.0,0.36594295]
[1759105724122,4.84348581,4143.1,4143.0,1.72404401]
[1759105726522,4.59548581,4143.1,4143.0,1.72404401]
[1759105726717,4.84248581,4143.1,4143.0,1.72404401]
[1759105727320,4.84248581,4143.1,4143.0,0.00264295]
[1759105727618,4.84303585,4143.1,4143.0,0.00264295]
[1759105728219,4.84303585,4143.1,4143.0,0.61674295]
[1759105728723,4.84303585,4143.1,4143.0,0.00264295]
[1759105729822,4.59603585,4143.1,4143.0,0.00264295]
[1759105730023,4.84303585,4143.1,4143.0,0.00264295]
[1759105730821,9.84303585,4143.1,4143.0,0.00264295]
[1759105731013,0.69608,4142.0,4141.9,0.49292523]
[1759105731215,2.21518191,4142.0,4141.9,0.12962523]
[1759105731723,2.21518191,4142.0,4141.8,0.86940106]
[1759105731920,1.38520191,4141.9,4141.8,1.4864537]
[1759105733121,1.38520191,4141.9,4141.8,0.85495264]
[1759105733330,1.38520191,4141.9,4141.8,1.7243537]
[1759105735521,0.50125911,4141.9,4141.8,1.7243537]
[1759105735724,3.2078,4142.6,4142.5,0.6631]
[1759105736023,3.4548,4142.6,4142.5,2.32933106]
[1759105736821,3.4548,4142.6,4142.5,1.89500106]
[1759105737027,4.3239,4142.6,4142.5,1.89500106]
[1759105738132,0.5124,4142.3,4142.2,0.8691]
[1759105738427,0.7594,4142.3,4142.2,1.73850106]
[1759105738625,4.51123,4142.6,4142.5,1.0256]
[1759105738928,5.25948327,4142.6,4142.5,1.89500106]
[1759105739728,5.25948327,4142.6,4142.5,1.73850106]
[1759105740024,5.25948327,4142.6,4142.2,1.23190106]
[1759105740025,0.43435,4142.3,4142.2,1.23190106]
[1759105740228,1.55045,4142.3,4142.2,0.8691]
[1759105741830,0.2599,4141.9,4141.8,1.26607668]
[1759105742031,0.7594,4141.9,4141.8,1.51657668]
[1759105742232,1.1161,4141.9,4141.8,1.51657668]
[1759105742428,1.1161,4141.9,4141.8,1.87907668]
[1759105743726,1.1161,4141.9,4141.8,0.87205264]
[1759105743928,1.61817839,4141.9,4141.8,0.00295264]
[1759105745223,1.61817839,4141.9,4141.8,0.36545264]
[1759105745429,1.61817839,4141.9,4141.8,0.62155264]
[1759105747431,1.61817839,4141.9,4141.8,0.36545264]
[1759105749029,1.61817839,4141.9,4141.8,0.62155264]
[1759105750430,1.61817839,4141.9,4141.8,0.00295264]
[1759105750630,0.43448,4141.0,4140.7,0.6186]
[1759105750832,0.5124,4140.8,4140.7,1.0531]
[1759105751136,0.5124,4140.8,4140.7,1.3036]
[1759105751333,0.8691,4140.8,4140.7,0.8691]
[1759105751528,0.8691,4140.8,4140.7,0.87172792]
[1759105754035,0.2599,4140.8,4140.7,1.87875196]
[1759105754234,3.2078,4140.9,4140.8,0.9419]
[1759105754429,3.704,4140.9,4140.8,0.8552]
[1759105755131,0.1211,4141.5,4141.1,1.28966]
[1759105755132,3.2078,4141.4,4141.1,1.28966]
[1759105755333,0.4962,4141.3,4141.2,0.8552]
[1759105756436,0.4962,4141.3,4141.2,1.86222404]
[1759105756737,1.1192,4141.3,4141.2,1.86222404]
[1759105756940,0.7402,4141.3,4141.2,1.86222404]
[1759105757342,1.24178085,4141.3,4141.2,1.86222404]
[1759105758640,1.24178085,4141.3,4141.2,0.8552]
[1759105759543,1.24178085,4141.3,4141.2,0.3478]
[1759105759544,1.62078085,4141.3,4141.2,0.3478]
[1759105760036,1.37378085,4141.3,4141.2,0.3478]
[1759105760342,0.8722,4141.1,4141.0,0.7514]
[1759105760541,1.62078085,4141.1,4141.0,0.7514]
[1759105760940,1.62078085,4141.1,4141.0,0.3478]
[1759105761139,0.4932,4140.8,4140.7,1.61175196]
[1759105761342,1.1192,4140.8,4140.7,1.61175196]
[1759105761744,1.1192,4140.8,4140.7,0.60472792]
[1759105762446,1.1192,4140.8,4140.7,0.85782792]
[1759105762641,3.2078,4140.9,4140.7,0.94453792]
[1759105762843,3.2078,4140.9,4140.8,0.8552]
[1759105763044,3.704,4140.9,4140.8,0.8552]
[1759105764352,3.948,4140.9,4140.8,0.8552]
[1759105764555,4.3072,4140.9,4140.8,0.8552]
[1759105765254,4.3072,4140.9,4140.8,0.6021]
[1759105767150,4.80872998,4140.9,4140.8,0.6021]
[1759105767452,4.3072,4140.9,4140.8,0.6021]
[1759105768249,4.80886339,4140.9,4140.8,0.6021]
[1759105770351,4.3072,4140.9,4140.8,0.8527]
[1759105771360,4.0602,4140.9,4140.8,0.8527]
[1759105771553,4.8112758,4140.9,4140.8,0.8527]
[1759105771956,5.2457658,4140.9,4140.8,0.8527]
[1759105772558,5.2457658,4140.9,4140.8,0.6021]
[1759105775060,1.2787,4140.8,4140.7,0.00262792]
[1759105775359,1.7827758,4140.8,4140.7,0.00262792]
[1759105775657,1.7827758,4140.8,4140.2,0.3731]
[1759105775658,0.43458,4140.1,4139.7,0.57745977]
[1759105775960,1.08631,4140.7,4139.7,2.07819381]
[1759105775961,0.2377,4139.8,4139.7,2.07819381]
[1759105776159,0.4847,4139.8,4139.7,2.07819381]
[1759105776348,0.4847,4139.8,4139.7,2.45129381]
[1759105776552,1.0912,4139.8,4139.7,0.6162]
[1759105776759,1.59743239,4139.8,4139.7,0.37596943]
[1759105776950,1.59743239,4139.8,4139.7,0.61906943]
[1759105777656,0.50623239,4139.8,4139.7,1.87669347]
[1759105777959,0.24878248,4139.8,4139.7,1.87669347]
[1759105779062,0.00178248,4139.8,4139.7,1.87669347]
[1759105779261,0.24878248,4139.8,4139.7,1.87669347]
[1759105781662,0.00178248,4139.8,4139.7,1.87669347]
[1759105784264,0.23948248,4139.8,4139.7,1.87669347]
[1759105785869,0.00178248,4139.8,4139.7,1.87669347]
[1759105788464,0.00178248,4139.8,4139.7,2.31131347]
[1759105795181,0.00178248,4139.8,4139.7,7.31131347]
[1759105802277,0.00178248,4139.8,4139.7,8.04621191]
[1759105804482,0.00178248,4139.8,4139.7,7.17525067]
[1759105804784,0.00178248,4139.8,4139.7,8.04621191]
[1759105805478,0.00178248,4139.8,4139.7,11.25401191]
[1759105805688,3.2078,4140.7,4140.6,0.8431]
[1759105805985,3.71406344,4140.7,4140.6,1.71406124]
[1759105806183,3.95056344,4140.7,4140.6,1.71406124]
[1759105806579,3.95292814,4140.7,4140.6,1.71406124]
[1759105806779,4.56942814,4140.7,4140.6,1.71406124]
[1759105807180,3.95292814,4140.7,4140.6,1.71406124]
[1759105807384,3.95272774,4140.7,4140.6,1.71406124]
[1759105807982,3.71622774,4140.7,4140.6,1.71406124]
[1759105808175,0.0023647,4140.7,4140.6,1.96106124]
[1759105809980,0.0023647,4140.7,4140.6,1.0901]
[1759105810186,0.8553647,4140.7,4140.6,0.8431]
[1759105810391,0.8553647,4140.7,4140.6,1.46686124]
[1759105811089,4.0631647,4140.7,4140.6,1.46686124]
[1759105812584,0.8108,4140.4,4140.3,0.87096124]
[1759105812978,1.3183137,4140.4,4140.3,1.22686124]
[1759105815290,1.3183137,4140.4,4140.3,1.45756124]
[1759105817089,1.3183137,4140.4,4140.3,1.70206124]
[1759105817790,0.8108,4139.9,4139.8,0.5866]
[1759105817985,0.8108,4139.9,4139.8,1.45756124]
[1759105818488,1.56499319,4139.9,4139.8,0.87096124]
[1759105819085,1.24541,4139.8,4139.7,0.00286943]
[1759105819287,1.75257321,4139.8,4139.7,0.00286943]
[1759105819488,6.75257321,4139.8,4139.7,0.00286943]
[1759105819791,1.24549,4139.0,4138.9,1.45756124]
[1759105819992,5.20737605,4139.0,4138.9,0.87096124]
[1759105820291,4.381,4139.0,4138.9,0.87096124]
[1759105820595,4.2656,4139.0,4138.9,1.70206124]
[1759105820789,4.2656,4139.0,4138.0,0.30186535]
[1759105820790,0.8108,4138.4,4138.3,0.3559]
[1759105820989,0.8108,4138.4,4138.1,0.3559]
[1759105820990,1.0578,4138.4,4138.1,0.3559]
[1759105821188,0.8108,4138.2,4138.1,0.3559]
[1759105821586,0.8108,4138.2,4138.1,0.5866]
[1759105821896,0.8108,4138.2,4138.1,0.58936937]
[1759105822596,0.8108,4138.2,4138.1,0.83386937]
[1759105822797,0.4578,4138.2,4138.1,0.83386937]
[1759105823194,3.2078,4138.5,4138.3,0.43476]
[1759105823391,0.4771,4138.4,4138.3,2.13682124]
[1759105824201,3.4548,4138.5,4138.4,0.8052]
[1759105824699,3.7033,4138.5,4138.4,0.8052]
[1759105825398,0.2485,4138.9,4138.8,0.43471]
[1759105825599,0.247,4138.9,4138.8,2.11087124]
[1759105825993,0.247,4138.9,4138.8,1.67616124]
[1759105825994,1.0797,4138.9,4138.8,1.67616124]
[1759105826187,0.8327,4138.9,4138.8,1.67616124]
[1759105826392,1.0797,4138.9,4138.8,1.67616124]
[1759105826796,0.3561,4138.8,4138.2,0.87096124]
[1759105827003,1.26747,4138.3,4138.1,0.00276937]
[1759105827295,3.2078,4138.4,4138.1,0.00276937]
[1759105827296,1.0797,4138.2,4138.1,0.00276937]
[1759105827491,1.0797,4138.2,4138.1,1.11493061]
[1759105827698,1.0797,4138.2,4138.1,1.44993061]
[1759105827896,1.0797,4138.2,4138.1,0.87373061]
[1759105828093,1.0797,4138.2,4138.1,0.00276937]
[1759105829897,1.0797,4138.2,4138.1,0.57896937]
[1759105830099,0.4766,4138.2,4138.1,0.80796937]
[1759105830302,0.247,4138.2,4138.1,1.67893061]
[1759105830499,0.7236,4138.2,4138.1,0.33776937]
[1759105830705,1.0797,4138.2,4138.1,0.57896937]
[1759105830900,1.0797,4138.2,4138.1,1.44993061]
[1759105831701,0.7236,4138.2,4138.1,1.67893061]
[1759105833111,0.4955,4138.2,4138.1,1.67893061]
[1759105834806,0.247,4138.2,4138.1,1.67893061]
[1759105834997,3.2078,4138.4,4138.3,0.8052]
[1759105836101,0.2485,4138.7,4138.6,0.8052]
[1759105836301,0.4955,4138.7,4138.6,1.67616124]
[1759105836496,1.0797,4138.7,4138.6,1.11216124]
[1759105837002,0.8327,4138.6,4138.5,1.44716124]
[1759105837199,0.8327,4138.6,4138.2,0.87096124]
[1759105837200,0.2485,4138.3,4138.2,0.87096124]
[1759105837401,1.0797,4138.3,4138.2,0.5762]
[1759105837607,1.0797,4138.3,4138.2,1.11216124]
[1759105838001,1.0797,4138.3,4138.2,1.44716124]
[1759105840008,0.7236,4138.3,4138.2,1.67616124]
[1759105840706,1.0797,4138.3,4138.2,1.67616124]
[1759105841704,0.7236,4138.3,4138.2,1.67616124]
[1759105841898,1.0797,4138.3,4138.1,0.00276937]
[1759105842099,1.51447,4138.3,4138.1,0.00276937]
[1759105842602,0.8327,4138.2,4138.1,0.00276937]
[1759105843307,6.34453621,4138.2,4138.1,0.00276937]
[1759105847509,0.43479,4138.1,4137.9,0.02416714]
[1759105847718,5.80469745,4138.0,4137.9,0.02416714]
[1759105848811,5.80469745,4138.0,4137.9,0.02607114]
[1759105850120,0.2485,4136.9,4136.8,1.24012]
[1759105850314,0.4945,4136.9,4136.8,2.11108124]
[1759105851016,0.49639569,4136.9,4136.8,2.11387069]
[1759105851313,0.24789569,4136.9,4136.8,2.11387069]
[1759105852816,0.49639569,4136.9,4136.8,1.67895069]
[1759105853021,1.08059569,4136.9,4136.8,1.67895069]
[1759105854415,1.59333122,4136.9,4136.8,1.67895069]
[1759105854611,1.59333122,4136.9,4136.8,0.33778945]
[1759105854814,1.59333122,4136.9,4136.8,0.00278945]
[1759105856218,1.59333122,4136.9,4136.8,0.58008945]
[1759105856723,1.59333122,4136.9,4136.8,0.00278945]
[1759105858820,1.59333122,4136.9,4136.8,0.34868945]
[1759105859018,1.59333122,4136.9,4136.8,0.58008945]
[1759105859214,1.59333122,4136.9,4136.8,1.45105069]
[1759105864226,1.59333122,4136.9,4136.8,0.58008945]
[1759105864523,1.59333122,4136.9,4136.8,0.00278945]
[1759105866919,1.34733122,4136.9,4136.8,0.80348945]
[1759105867227,1.59333122,4136.9,4136.8,0.80348945]
[1759105868817,1.34733122,4136.9,4136.8,0.80348945]
[1759105869020,1.59333122,4136.9,4136.8,0.80348945]
[1759105869220,1.23723122,4136.9,4136.8,0.80348945]
[1759105870122,0.51463122,4136.9,4136.8,0.80348945]
[1759105870427,0.76063122,4136.9,4136.8,0.80348945]
[1759105873429,0.51463122,4136.9,4136.8,0.80348945]
[1759105873729,0.76063122,4136.9,4136.8,0.80348945]
[1759105873921,0.51463122,4136.9,4136.8,5.80348945]
[1759105874128,0.00189569,4136.9,4136.8,5.80348945]
[1759105874315,0.24169569,4136.9,4136.8,6.81330755]
[1759105874519,0.48769569,4136.9,4136.8,1.81330755]
[1759105874720,0.00189569,4136.9,4136.8,6.81330755]
[1759105874928,0.24789569,4136.9,4136.8,6.81330755]
[1759105875130,0.00189569,4136.9,4136.8,10.02110755]
[1759105875315,3.4265,4138.1,4138.0,0.2323]
[1759105875516,5.21441209,4138.1,4138.0,0.3346]
[1759105876028,1.24803,4137.7,4137.6,0.5669]
[1759105876237,1.24806,4137.5,4137.4,0.5669]
[1759105876419,5.21748413,4137.5,4137.4,0.5669]
[1759105876826,1.24809,4137.2,4137.1,0.3346]
[1759105877026,2.00671209,4137.2,4137.1,0.3346]
[1759105877226,2.00671209,4137.2,4137.1,0.5669]
[1759105878146,0.51262209,4137.2,4137.1,1.7986181]
[1759105878336,0.75862209,4137.2,4137.1,1.7986181]
[1759105878930,0.51262209,4137.2,4137.1,1.7986181]
[1759105879130,3.21080204,4137.5,4137.4,0.7888]
[1759105879331,3.96986417,4137.5,4137.4,1.7986181]
[1759105879531,4.20966417,4137.5,4137.4,1.7986181]
[1759105881228,3.72386417,4137.5,4137.4,1.7986181]
[1759105881436,3.96986417,4137.5,4137.4,1.7986181]
[1759105884434,4.20766417,4137.5,4137.4,0.7888]
[1759105884733,0.2378,4137.2,4137.1,1.6760081]
[1759105884938,1.0418,4137.2,4137.1,1.8246181]
[1759105885136,0.7036,4137.2,4137.1,1.8246181]
[1759105885531,1.0418,4137.2,4137.1,1.8246181]
[1759105885838,1.98937597,4137.2,4137.1,0.346]
[1759105886639,1.47668,4137.2,4137.1,0.5773]
[1759105887033,1.98912458,4137.2,4137.1,0.5773]
[1759105887235,1.47668,4137.2,4137.1,0.5773]
[1759105887932,0.4349,4137.1,4136.8,1.01260755]
[1759105888239,0.7958,4136.9,4136.8,1.58990755]
[1759105888532,0.7958,4136.9,4136.8,1.82740755]
[1759105890042,0.4576,4136.9,4136.8,1.82740755]
[1759105890238,3.21080204,4137.5,4136.8,1.48140755]
[1759105890441,3.21080204,4137.5,4137.4,1.8246181]
[1759105890739,3.96794011,4137.5,4137.4,1.8246181]
[1759105891041,4.20574011,4137.5,4137.4,1.8246181]
[1759105892343,3.96794011,4137.5,4137.4,1.8246181]
[1759105893344,4.20574011,4137.5,4137.4,1.8246181]
[1759105893648,4.76374011,4137.5,4137.4,0.5773]
[1759105894549,0.4576,4137.3,4137.2,1.2411181]
[1759105894733,1.55293807,4137.3,4137.2,1.5871181]
[1759105895244,1.21473807,4137.3,4137.2,1.8246181]
[1759105896443,0.7036,4137.3,4137.2,1.8246181]
[1759105896745,0.246,4137.3,4137.2,1.8246181]
[1759105897343,0.75745432,4137.3,4137.2,1.8246181]
[1759105897538,0.246,4137.3,4137.2,1.8246181]
[1759105898042,3.21080204,4137.5,4137.4,0.8148]
[1759105898238,3.96833448,4137.5,4137.4,0.8148]
[1759105899139,3.45680204,4137.5,4137.4,0.8148]
[1759105899734,3.21080204,4137.5,4137.4,0.8148]
[1759105900843,3.2078,4138.2,4138.1,0.8148]
[1759105901040,3.2078,4138.2,4138.1,1.8246181]
[1759105901041,4.20335075,4138.2,4138.1,1.8246181]
[1759105901846,4.20627287,4138.2,4138.1,1.8246181]
[1759105903050,3.96027287,4138.2,4138.1,1.8246181]
[1759105903945,4.51827287,4138.2,4138.1,1.8246181]
[1759105904954,4.51827287,4138.2,4137.7,0.16209368]
[1759105904955,0.7958,4137.8,4137.7,0.346]
[1759105905149,0.4576,4137.5,4137.4,0.66616]
[1759105905450,0.7958,4137.5,4137.4,1.01216]
[1759105905652,0.7958,4137.5,4137.4,1.24966]
[1759105905853,0.7958,4137.5,4137.4,1.41341642]
[1759105906046,1.0418,4137.5,4137.4,0.74105642]
[1759105906350,1.55348574,4137.5,4137.4,0.5773]
[1759105906552,1.55348574,4137.5,4137.4,1.5871181]
[1759105906753,1.55348574,4137.5,4137.4,1.8246181]
[1759105906952,1.21528574,4137.5,4137.4,1.8246181]
[1759105907750,1.55348574,4137.5,4137.4,1.8246181]
[1759105908051,1.55348574,4137.5,4137.4,1.5871181]
[1759105908949,1.55348574,4137.5,4137.4,0.5773]
[1759105909153,1.55348574,4137.5,4137.4,0.346]
[1759105910548,1.55348574,4137.5,4137.4,0.5773]
[1759105911855,0.7958,4136.9,4136.8,3.21058945]
[1759105912052,1.30780949,4136.9,4136.8,3.21058945]
[1759105913152,1.30780949,4136.9,4136.8,3.78788945]
[1759105914554,1.30780949,4136.9,4136.8,3.21058945]
[1759105915061,1.30780949,4136.9,4136.8,0.00278945]
[1759105915661,6.30780949,4136.9,4136.8,0.00278945]
[1759105920455,6.30780949,4136.9,4136.8,0.34908945]
[1759105920663,0.96960949,4136.9,4136.8,0.81288945]
[1759105920854,1.21560949,4136.9,4136.8,0.81288945]
[1759105922162,0.96960949,4136.9,4136.8,0.81288945]
[1759105922463,1.21560949,4136.9,4136.8,0.81288945]
[1759105923662,1.55010949,4136.9,4136.8,0.81288945]
[1759105924265,1.55010949,4136.9,4136.8,1.6854979]
[1759105929355,1.55010949,4136.9,4136.8,0.00278945]
[1759105929557,1.55010949,4136.9,4136.8,0.00089375]
[1759105930562,1.21435,4135.6,4135.5,0.9479]
[1759105930869,1.21435,4135.6,4135.2,0.4638]
[1759105930870,0.65608,4135.3,4135.2,0.4638]
[1759105931166,0.467,4135.3,4135.2,0.4638]
[1759105931356,0.467,4135.3,4135.2,0.8101]
[1759105931557,0.2490232,4135.3,4135.2,0.81301697]
[1759105934060,0.2490232,4135.3,4135.2,1.68562542]
[1759105935562,0.0030232,4135.3,4135.2,6.68562542]
[1759105936071,0.0030232,4135.3,4135.2,9.89342542]
[1759105936363,0.0030232,4135.3,4135.2,4.89342542]
[1759105938468,0.0030232,4135.3,4135.2,9.89342542]
[1759105939773,0.7905232,4135.3,4135.2,0.81301697]
[1759105940769,0.2391232,4135.3,4135.2,0.81301697]
[1759105941071,0.2391232,4135.3,4135.2,1.68562542]
[1759105942072,4.43028,4136.3,4136.2,0.814]
[1759105942373,5.19228692,4136.3,4136.2,1.68660845]
[1759105942571,5.19228692,4136.3,4136.2,0.814]
[1759105942777,5.19228692,4136.3,4136.2,0.5899]
[1759105942968,1.2225,4136.1,4136.0,1.82430845]
[1759105943272,1.73850692,4136.1,4136.0,1.82430845]
[1759105943774,1.98450692,4136.1,4136.0,1.82430845]
[1759105943969,1.98450692,4136.1,4136.0,1.68660845]
[1759105944169,1.98450692,4136.1,4136.0,1.46250845]
[1759105944566,0.4662,4135.8,4135.7,1.21690845]
[1759105944767,0.4662,4135.8,4135.4,1.45020845]
[1759105944768,0.4662,4135.5,4135.4,1.45020845]
[1759105944975,0.8235,4135.5,4135.4,1.45020845]
[1759105945275,0.90127,4135.4,4135.3,0.5776]
[1759105945574,1.25857,4135.4,4135.3,0.8013]
[1759105945870,1.25857,4135.4,4135.3,1.67390845]
[1759105948868,1.25857,4135.4,4135.2,3.21071697]
[1759105949171,1.33950705,4135.3,4135.2,0.58051697]
[1759105949365,1.33950705,4135.3,4135.2,0.80421697]
[1759105950468,0.76200705,4135.3,4135.2,0.80421697]
[1759105950868,0.99960705,4135.3,4135.2,0.80421697]
[1759105951263,1.22820705,4135.3,4135.2,0.80421697]
[1759105951774,1.58550705,4135.3,4135.2,0.80421697]
[1759105951977,1.58550705,4135.3,4135.2,1.67682542]
[1759105953190,1.33950705,4135.3,4135.2,1.67682542]
[1759105953381,1.58550705,4135.3,4135.2,1.67682542]
[1759105954081,0.98220705,4135.3,4135.2,1.67682542]
[1759105954287,1.22820705,4135.3,4135.2,1.67682542]
[1759105954989,0.51600705,4135.3,4135.2,1.67682542]
[1759105955991,0.75360705,4135.3,4135.2,1.67682542]
[1759105956180,0.51600705,4135.3,4135.2,1.67682542]
[1759105956487,0.246,4135.4,4135.3,1.23637]
[1759105956881,0.76308362,4135.4,4135.3,1.23637]
[1759105957284,1.00068362,4135.4,4135.3,1.23637]
[1759105957490,1.00068362,4135.4,4135.3,0.8013]
[1759105957684,1.58658362,4135.4,4135.3,0.8013]
[1759105958790,1.34058362,4135.4,4135.3,0.8013]
[1759105959984,0.75468362,4135.4,4135.3,0.8013]
[1759105960184,0.51708362,4135.4,4135.3,0.8013]
[1759105960389,1.34058362,4135.4,4135.3,0.8013]
[1759105960786,0.98328362,4135.4,4135.3,0.8013]
[1759105960992,0.51708362,4135.4,4135.3,0.8013]
[1759105961188,0.98328362,4135.4,4135.3,1.67390845]
[1759105961489,1.34058362,4135.4,4135.3,2.10897845]
[1759105963196,1.41834362,4135.4,4135.3,2.10897845]
[1759105963395,1.77564362,4135.4,4135.3,2.10897845]
[1759105963791,1.77564362,4135.4,4135.3,1.88527845]
[1759105964099,1.77564362,4135.4,4135.3,2.10897845]
[1759105964793,1.77564362,4135.4,4135.3,1.67390845]
[1759105965000,0.90127,4135.3,4135.2,0.00291697]
[1759105965200,1.77565362,4135.3,4135.2,0.00291697]
[1759105965996,2.64826207,4135.3,4135.2,0.00291697]
[1759105966194,2.64826207,4135.3,4134.0,0.1407]
[1759105966195,0.8235,4134.3,4134.2,3.7854]
[1759105966393,0.51708362,4134.3,4134.2,4.0091]
[1759105966695,1.25867,4134.4,4134.3,0.8013]
[1759105966998,1.41888739,4134.4,4134.3,0.5776]
[1759105967194,1.77618739,4134.4,4134.3,0.58052261]
[1759105967898,1.77618739,4134.4,4134.3,0.80422261]
[1759105968196,0.51751739,4134.4,4134.3,0.80422261]
[1759105968499,0.246,4134.6,4134.5,0.942]
[1759105968799,0.76326603,4134.6,4134.5,1.81460845]
[1759105970000,0.51726603,4134.6,4134.5,1.81460845]
[1759105973896,0.66817,4135.4,4135.3,0.8056]
[1759105974103,1.00737796,4135.4,4135.3,1.67820845]
[1759105975193,1.22017796,4135.4,4135.3,1.67820845]
[1759105975399,1.54687796,4135.4,4135.3,1.67820845]
[1759105976210,1.30087796,4135.4,4135.3,1.67820845]
[1759105976411,1.54687796,4135.4,4135.3,1.67820845]
[1759105976908,0.97417796,4135.4,4135.3,1.67820845]
[1759105977107,1.00737796,4135.4,4135.3,1.67820845]
[1759105977412,0.52827796,4135.4,4135.3,1.67820845]
[1759105979308,0.52827796,4135.4,4135.3,5.7586169]
[1759105979514,0.23540442,4136.3,4136.2,0.8056]
[1759105979715,0.41040442,4136.3,4136.2,1.67820845]
[1759105980010,0.23540442,4136.3,4136.2,1.67820845]
[1759105980315,0.00230442,4136.3,4136.2,1.67820845]
[1759105983408,0.77490442,4136.3,4136.2,0.8056]
[1759105983617,0.76168,4136.2,4136.0,0.3414]
[1759105983813,0.7726,4135.9,4135.8,1.21400845]
[1759105984008,0.7726,4135.6,4135.5,0.5707]
[1759105984207,0.43505,4135.5,4135.4,3.2078]
[1759105984411,1.20765,4135.5,4135.4,3.7785]
[1759105984714,1.45365,4135.5,4135.4,3.2078]
[1759105985115,0.43509,4135.2,4135.1,0.5707]
[1759105985316,0.43511,4135.0,4134.9,3.5492]
[1759105985517,0.43511,4135.0,4134.9,3.7785]
[1759105985518,0.88101,4135.0,4134.9,3.7785]
[1759105985817,1.20771,4135.0,4134.9,3.7785]
[1759105986117,1.32091,4135.0,4134.9,3.2078]
[1759105986319,1.20774,4134.7,4134.6,1.58111017]
[1759105986819,0.43516,4134.5,4134.4,3.5492]
[1759105987026,0.88106,4134.5,4134.4,3.7785]
[1759105987321,1.20776,4134.5,4134.4,3.7785]
[1759105988916,0.43508,4135.3,4135.2,0.2293]
[1759105989221,0.68108,4135.3,4135.2,0.8056]
[1759105989917,0.246,4135.3,4135.2,0.8056]
[1759105990922,3.2078,4135.5,4135.2,0.8056]
[1759105991124,0.246,4135.4,4135.3,0.3414]
[1759105991324,0.68107,4135.4,4135.3,0.8056]
[1759105991524,1.44115096,4135.4,4135.3,0.8056]
[1759105992726,1.19515096,4135.4,4135.3,0.8056]
[1759105992923,1.44115096,4135.4,4135.3,0.8056]
[1759105994319,0.97238096,4135.4,4135.3,0.8056]
[1759105994520,1.31718096,4135.4,4135.3,0.8056]
[1759105995027,0.97238096,4135.4,4135.3,0.8056]
[1759105995224,0.2141,4135.1,4135.0,3.5766]
[1759105995429,1.2253,4135.1,4135.0,3.9015]
[1759105996226,1.2253,4135.1,4135.0,4.1353]
[1759105996427,1.75212313,4135.1,4135.0,4.1353]
[1759105998023,1.75212313,4135.1,4135.0,3.7585]
[1759105998329,1.75212313,4135.1,4135.0,3.2078]
[1759105998823,0.5589,4134.5,4134.4,3.2078]
[1759105999029,1.0362,4134.5,4134.4,3.2078]
[1759105999420,1.0362,4134.5,4134.4,3.5327]
[1759105999721,0.43517,4134.4,4134.3,0.00292261]
[1759105999928,1.75220388,4134.4,4134.3,0.00292261]
[1759106004831,1.75220388,4134.4,4134.3,2.61e-06]
[1759106005829,42.55220388,4134.4,4134.3,2.61e-06]
[1759106006026,42.55220388,4134.4,4134.3,0.56060261]
[1759106006227,42.79820388,4134.4,4134.3,0.56060261]
[1759106007428,1.99820388,4134.4,4134.3,0.56060261]
[1759106007824,42.55220388,4134.4,4134.3,0.56060261]
[1759106008027,42.45340388,4134.4,4134.3,0.79160261]
[1759106008327,1.40740388,4134.4,4134.3,0.79160261]
[1759106008632,1.65340388,4134.4,4134.3,0.79160261]
[1759106009230,0.2202,4133.7,4133.6,0.7916]
[1759106009435,0.246,4133.7,4133.6,0.7916]
[1759106010029,0.43524,4133.8,4133.6,0.4559]
[1759106010230,0.43524,4133.8,4133.7,1.80273786]
[1759106010432,0.68124,4133.8,4133.7,1.80273786]
[1759106012135,0.43524,4133.8,4133.7,1.80273786]
[1759106012432,0.68124,4133.8,4133.7,1.80273786]
[1759106013036,0.90144,4133.8,4133.7,1.80273786]
[1759106013632,0.90144,4133.8,4133.7,0.7916]
[1759106014031,1.13094,4133.8,4133.7,0.7916]
[1759106014234,1.97186657,4133.8,4133.7,0.3357]
[1759106014838,0.7668,4133.7,4133.6,0.33865685]
[1759106015132,1.29062657,4133.7,4133.6,0.00295685]